{"text_format":"3","workbook":"xlsx","n_sheets":14,"sheets":["1-1 BILL NO  01","1-2 BILL NO 02","1-3 BILL NO 3","1-4 BILL NO 04","1-5 BILL NO 05","1-6 BILL NO 06","1-7 BILL NO 07","1-8 BILL NO 08","1-9 BILL NO 09","1-10 BILL NO 10","1-11 BILL NO 11","1-12 BILL NO 12","1-13 BILL NO 13","1-14 Summary"],"not_rendered":{"defined_names":13},"read":"whole","date_system":"1900"}

{"sheet":"1-1 BILL NO  01","index":0,"n_rows":483,"n_cols":7,"rows_kept":483,"merged":[[1,0,2,0],[1,1,2,1],[1,2,2,2],[1,3,2,3],[1,4,1,5]]}
[]
["ITEM","DESCRIPTION","UNIT","QTY","Priced BOQ"]
[{"$nulls":4},"RATE","AMOUNT"]
["","BILL NO  01","H1",null,"","",""]
[]
["","PRELIMINARIES","H1",null,"","",""]
[]
["","BUILDING AGREEMENT AND PRELIMINARIES","H2",null,"","",""]
[]
["","The JBCC Principal Building Agreement (Edition 6.2 - May 2018) prepared by the Joint Building Contracts Committee shall be the applicable building agreement, amended as hereinafter described","",null,"","",""]
[]
["","The JBCC Principal Building Agreement contract data form an integral part of this agreement","",null,"","",""]
[]
["","The JBCC General Preliminaries (May 2018) published by the Joint Building Contracts Committee for use with the JBCC Principal Building Agreement (Edition 6.2 - May 2018) shall be deemed to be incorporated in these bills of quantities, amended as hereinafter described","",null,"","",""]
[]
["","The contractor is deemed to have referred to the abovementioned documents for the full intent and meaning of each clause","",null,"","",""]
[]
["","The clauses in the above mentioned documents are hereinafter referred to by clause number and heading only","",null,"","",""]
[]
["","Where any item is not relevant to this agreement such item is marked N/A signifying \"not applicable\"","",null,"","",""]
[]
["","Where standard clauses or alternatives are not entirely applicable to this agreement such amendments, modifications, corrections or supplements as will apply are given under each relevant clause heading and such amendments, modifications, corrections or supplements shall take precedence notwithstanding anything to the contrary contained in the abovementioned documents","",null,"","",""]
[]
["","PREAMBLES FOR TRADES","H2",null,"","",""]
[]
["","The General Preambles for Trades 2017 published by the Association of South African Quantity Surveyors is designed to support and extend the abbreviated descriptions utilised in these bills of quantities by inter alia referring to SANS construction standards. Where such preambles are not applicable (eg where BS or Euro construction standards are applicable or the design consultants provide other preambles/specifications for insertion), users are to ensure that the abbreviated descriptions when read in conjunction with the Standard System of Measuring Building Work (seventh edition) for works within South Africa or the Standard Method of Measuring Building Work for Africa 2015 (first edition) for works elsewhere in Africa, represent the full description by extending the abbreviated bills of quantities descriptions and/or by inserting appropriate preambles or specifications","",null,"","",""]
[]
["","Note that the text of the Standard System of Measuring Building Work (seventh edition) and that of the Standard Method of Measuring Building Work for Africa 2015 (first edition) is the same","",null,"","",""]
[]
["","The latest version of the General Preambles for Trades should be referred to should the General Preambles for Trades 2017 be revised in future","",null,"","",""]
[]
["","The General Preambles for Trades 2017 published by the Association of South African Quantity Surveyors shall be deemed to be incorporated in these bills of quantities and no claims arising from brevity of description of items fully described in the said General Preambles will be entertained","",null,"","",""]
[]
["","Supplementary preambles and/or specifications are incorporated in these bills of quantities to satisfy the requirements of this project. Such supplementary preambles and/or specifications shall take precedence over the provisions of the General Preambles","",null,"","",""]
[]
["","The contractor's prices for all items throughout these bills of quantities shall take account of and include where applicable for all of the obligations, requirements and specifications given in the General Preambles and in any supplementary preambles and/or specifications","",null,"","",""]
[]
["","STRUCTURE OF THIS PRELIMINARIES BILL","H2",null,"","",""]
[]
["","Section A :  A recital of the headings of the individual clauses in the aforementioned JBCC Principal Building Agreement","",null,"","",""]
[]
["","Section B :  A recital of the headings of the individual clauses in the aforementioned JBCC General Preliminaries","",null,"","",""]
[]
["","Section C : Any special clauses to meet the particular circumstances of the project","",null,"","",""]
[]
["","PRICING OF PRELIMINARIES","H2",null,"","",""]
[]
["","Should the contractor select Option A in the contract data for the adjustment of preliminaries, the amounts entered against the relevant items in these preliminaries are to be divided into one or more of the three categories provided namely fixed (F), value related (V) and time related (T) ","",null,"","",""]
[]
["","SECTION A: PRINCIPAL BUILDING AGREEMENT","H2",null,"","",""]
[]
["","Interpretation (A1-A7)","H3",null,"","",""]
[]
["1","Clause 1.0 - Definitions and interpretation","CONT",null,"","",""]
[]
["","Pricing of bills of quantities","CONT",null,"","",""]
[]
["","The contractor is to allow opposite each item for all costs in connection therewith. All prices to include, unless otherwise stated, for all materials, fabrication, conveyance and delivery, unloading, storing, unpacking, hoisting, labour, setting, fitting and fixing in position, cutting and waste (except where to be measured in accordance with the standard system of measurement), patterns, models and templates, plant, temporary works, returning of packaging, duties, taxes (other than Value Added Tax), imposts, establishment charges, overheads, profit and all other obligations arising out of this agreement. Value Added Tax (VAT) is to be separately stated on the summary page of these bills of quantities","CONT",null,"","",""]
[]
["","Items left unpriced will be deemed to be covered in prices against other items throughout these bills of quantities and no claim for any extras arising out of the contractor's omission to price any item will be entertained","CONT",null,"","",""]
[]
["","Prices for all construction equipment, temporary works, services and other items shall include for the supply, maintenance, operating cost and subsequent removal and making good as necessary","CONT",null,"","",""]
[]
["","Abbreviated descriptions","CONT",null,"","",""]
[]
["","The items in these bills of quantities utilise abbreviated descriptions. It is the intention that the abbreviated descriptions be fully described when read with the applicable measuring system and the relevant preambles and/or specifications. However, should the full intent and meaning of any description not be clear, the contractor shall, before submission of his tender, call for a written directive from the principal agent, failing which it shall be assumed that the contractor has allowed in his pricing for materials and workmanship in terms of international best practice","CONT",null,"","",""]
[]
["","Legal status of contractor","CONT",null,"","",""]
[]
["","If the contractor constitutes a joint venture, consortium or other unincorporated grouping of two or more persons then:","CONT",null,"","",""]
[]
["","1.   These persons are deemed to be jointly and severally liable to the employer for the performance of this agreement","CONT",null,"","",""]
[]
["","2.   These persons shall notify the employer of their leader who has assigned authority to bind the contractor and each of these persons                                                                                                                                          ","CONT",null,"","",""]
[]
["","3.  The contractor shall not alter its composition or legal status without the prior written consent of the employer","CONT",null,"","",""]
[]
["","F:............................. V:............................ T:............................","Item",{"v":1,"d":"1.00"},null,{"$f":"D78*E78","v":{"v":0,"d":"R0.00"}},""]
[]
["2","Clause 2.0 - Law, regulations and notices","CONT",null,"","",""]
[]
["3","Clause 3.0 - Offer and acceptance  F:............................. V:............................ T:............................ ","Item",{"v":1,"d":"1.00"},null,{"$f":"D82*E82","v":{"v":0,"d":"R0.00"}},""]
[]
["4","Clause 4.0 - Cession and assignment  F:............................. V:............................ T:............................","Item",{"v":1,"d":"1.00"},null,{"$f":"D84*E84","v":{"v":0,"d":"R0.00"}},""]
[]
["5","Clause 5.0 - Documents","CONT",null,"","",""]
[]
["","Value Added Tax","CONT",null,"","",""]
[]
["","Provision is made in the summary page of these bills of quantities for the inclusion of Value Added Tax (VAT)","CONT",null,"","",""]
[]
["","Priced document as specification  Clause 5.4 is deemed to be deleted","CONT",null,"","",""]
[]
["","The principal agent shall decide which portion of the priced document may be used as a specification of materials and goods or methods, if any ?","CONT",null,"","",""]
[]
["","User note","H4",null,"","",""]
[]
["","Insert the following where applicable  ? Electronic issue of drawings  All drawings for this project will be issued electronically and the contractor shall be deemed to have received such drawings on the date that such drawings have been dispatched electronically [5.6] ?","CONT",null,"","",""]
[]
["","F:............................. V:............................ T:............................","Item",{"v":1,"d":"1.00"},null,{"$f":"D100*E100","v":{"v":0,"d":"R0.00"}},""]
[]
["6","Clause 6.0 - Employer's agents","CONT",null,"","",""]
[]
["","User note","H4",null,"","",""]
[]
["","Delegated authority may be dealt with in B 5.0 of the contract data. Insert in the contract data \"Refer to Bill No. 1 (Preliminaries)\" should it be dealt with in Bill No. 1","CONT",null,"","",""]
[]
["","Delegated authority","CONT",null,"","",""]
[]
["","The authority of the principal agent to issue contract instructions [17.1] and perform duties for specific aspects of the works is delegated to agents as follows [6.2]. This does not preclude the principal agent from issuing such contract instructions: ?","CONT",null,"","",""]
[]
["","User note","H4",null,"","",""]
[]
["","Add delegated authority as may be required for other relevant consultants not listed hereinafter","CONT",null,"","",""]
[]
["","1. Architect","CONT",null,"","",""]
[]
["","User note","H4",null,"","",""]
[]
["","Insert the following but remove where the consultant is not relevant to this agreement. Edit both the duties and the contract instructions of the consultant in keeping with the wishes of the principal agent","CONT",null,"","",""]
[]
["","Note that the contract instructions hereinafter are selected from those listed in clause 17.1 of the JBCC PBA","CONT",null,"","",""]
[]
["","1.1 Duties [6.2] :  The architect is responsible for the architectural design, functional design and quality inspection of the works","CONT",null,"","",""]
[]
["","1.2 Contract instructions [6.2; 17.1] :","CONT",null,"","",""]
[]
["","1.2.1     Rectification of discrepancies, errors in description or quantity or                  omission of items in the agreement other than in the JBCC Principal Building Agreement ","CONT",null,"","",""]
[]
["","1.2.2     Alteration to design, standards or quantity of the works provided that such contract instructions shall not substantially change the scope of the works","CONT",null,"","",""]
[]
["","1.2.3     The site [13.0]","CONT",null,"","",""]
[]
["","1.2.4     Compliance with the law, regulations and bylaws [2.1]","CONT",null,"","",""]
[]
["","1.2.5     Provision and testing of samples of materials and goods and/or of finishes and assemblies of elements of the works ","CONT",null,"","",""]
[]
["","1.2.6     Opening up of work for inspection, removal or re-execution [23.2.4; 26.4.2]","CONT",null,"","",""]
[]
["","1.2.7     Removal or re-execution of work","CONT",null,"","",""]
[]
["","1.2.8     Removal or substitution of any materials and goods","CONT",null,"","",""]
[]
["","1.2.9     Protection of the works","CONT",null,"","",""]
[]
["","1.2.10   Making good physical loss and repairing damage to the works [23.2.2]","CONT",null,"","",""]
[]
["","1.2.11   Rectification of defects [21.2]","CONT",null,"","",""]
[]
["","1.2.12    A list for practical completion specifying outstanding or defective              work to be rectified to achieve practical completion, a list for             completion and a list for final completion specifying outstanding or             defective work to be rectified to achieve final completion","CONT",null,"","",""]
[]
["","1.2.13   Expenditure of budgetary allowances, prime cost amounts and             provisional sums","CONT",null,"","",""]
[]
["","1.2.14    Appointment of a subcontractor [14.0; 15.0]","CONT",null,"","",""]
[]
["","1.2.15\t Work by direct contractors [16.0]","CONT",null,"","",""]
[]
["","1.2.16   On suspension or termination, protection of the works, removal of             construction equipment and surplus materials and goods [29.0] ?","CONT",null,"","",""]
[]
["","2. Quantity surveyor","CONT",null,"","",""]
[]
["","Insert the following but remove where the consultant is not relevant to this agreement. Edit both the duties and the contract instructions of the consultant in keeping with the wishes of the principal agent","CONT",null,"","",""]
[]
["","2.1 Duties [6.2] :  The quantity surveyor is responsible for all measurements, valuations, financial assessments and all other quantity surveying and cost control functions of the works","CONT",null,"","",""]
[]
["","2.2 Contract instructions [6.2; 17.1] :","CONT",null,"","",""]
[]
["","2.2.1 No contract instructions delegated to the quantity surveyor ? ","CONT",null,"","",""]
[]
["7","Clause 7.0 - Design responsibility  F:............................. V:............................ T:............................","Item",{"v":1,"d":"1.00"},null,{"$f":"D170*E170","v":{"v":0,"d":"R0.00"}},""]
[]
["","Insurances and securities (A8-A11)","H3",null,"","",""]
[]
["8","Clause 8.0 - Works risk  F:............................. V:............................ T:............................","Item",{"v":1,"d":"1.00"},null,{"$f":"D174*E174","v":{"v":0,"d":"R0.00"}},""]
[]
["9","Clause 9.0 - Indemnities  F:............................. V:............................ T:............................","Item",{"v":1,"d":"1.00"},null,{"$f":"D176*E176","v":{"v":0,"d":"R0.00"}},""]
[]
["10","Clause 10.0 - Insurances  F:............................. V:............................ T:............................","Item",{"v":1,"d":"1.00"},null,{"$f":"D178*E178","v":{"v":0,"d":"R0.00"}},""]
[]
["11","Clause 11.0 - Securities","CONT",null,"","",""]
[]
["","If it is deemed advisable, the extent of any guarantee for payment may be stated and whether it  is required of the contractor to waive his lien.  Edit the following clause: ","",{"v":0,"d":"0.0"},"","",""]
[]
["","Guarantee for payment","CONT",null,"","",""]
[]
["","The employer shall provide to the contractor a guarantee for payment in the amount of ?.......................................................Rand (R...........................) ? [11.5.1].  The contractor shall consequently waive his lien or right of continuing possession of the works [11.10]?","CONT",null,"","",""]
[]
["","Where it is expected of the contractor to waive his lien in terms of  clause 11.10, the waiver of lien may be extended to subcontracts as follows:","",{"v":0,"d":"0.0"},"","",""]
[]
["","Extension of waiver of lien","CONT",null,"","",""]
[]
["","The contractor shall ensure that a waiver of lien is included in all subcontracts and that the works executed on the site are kept free of all liens and other encumbrances at all times [11.10] ?","CONT",null,"","",""]
[]
["","F:............................. V:............................ T:............................","Item",{"v":1,"d":"1.00"},null,{"$f":"D194*E194","v":{"v":0,"d":"R0.00"}},""]
[]
["","Execution (A12 - A17) ","H3",null,"","",""]
[]
["12","Clause 12.0 - Obligations of the parties","CONT",null,"","",""]
[]
["","Office accommodation  The contractor shall provide, maintain and remove on practical completion air conditioned office accommodation with suitable tables and chairs for meetings to be held on the site. Such offices shall be kept clean and fit for use at all times [12.2.18] ?","CONT",null,"","",""]
[]
["","Statutory and other notices","CONT",null,"","",""]
[]
["","The contractor shall submit and/or comply with all statutory and other notices that may be required by any local or other authority in order not to cause any delay to the commencement of the works by the contractor. The contractor shall pay all deposits or fees in this regard","CONT",null,"","",""]
[]
["","It is, however, specifically recorded that the employer shall be responsible for the timeous approval of building plans by any local or other authorities and the payment of any fees or charges related thereto","CONT",null,"","",""]
[]
["","F:............................. V:............................ T:............................","Item",{"v":1,"d":"1.00"},null,{"$f":"D208*E208","v":{"v":0,"d":"R0.00"}},""]
[]
["13","Clause 13.0 - Setting out  F:............................. V:............................ T:............................","Item",{"v":1,"d":"1.00"},null,{"$f":"D210*E210","v":{"v":0,"d":"R0.00"}},""]
[]
["14","Clause 14.0 - Nominated subcontractors","CONT",null,"","",""]
[]
["","F:............................. V:............................ T:............................","Item",{"v":1,"d":"1.00"},null,{"$f":"D214*E214","v":{"v":0,"d":"R0.00"}},""]
[]
["15","Clause 15.0 - Selected subcontractors","CONT",null,"","",""]
[]
["","F:............................. V:............................ T:............................","Item",{"v":1,"d":"1.00"},null,{"$f":"D218*E218","v":{"v":0,"d":"R0.00"}},""]
[]
["16","Clause 16.0 - Direct contractors  Attendance on direct contractors  In respect of direct contractors the contractor shall:","CONT",null,"","",""]
[]
["","1.   Designate an area for the direct contractor to establish a temporary office and workshop and storage of equipment and materials","CONT",null,"","",""]
[]
["","2.\tAllow the use of personnel welfare facilities, where provided","CONT",null,"","",""]
[]
["","3.   Provide water, lighting and single phase electric power to a position within 50m of the place where the direct contract work is to be carried out, other than fuel or power for commissioning of any installation","CONT",null,"","",""]
[]
["","4.   Permit the direct contractor to use erected scaffolding, hoisting facilities, etc provided by the contractor, in common with others having the like right, while it remains erected on the site [16.1]","CONT",null,"","",""]
[]
["","F:............................. V:............................ T:............................","Item",{"v":1,"d":"1.00"},null,{"$f":"D230*E230","v":{"v":0,"d":"R0.00"}},""]
[]
["17","Clause 17.0 - Contract instructions  ? Site instructions  Instructions issued on site are to be recorded in a site instruction book which is to be supplied and maintained on site by the contractor ?","CONT",null,"","",""]
[]
["","F:............................. V:............................ T:............................","Item",{"v":1,"d":"1.00"},null,{"$f":"D234*E234","v":{"v":0,"d":"R0.00"}},""]
[]
["","Completion (A18 - A24) ","H3",null,"","",""]
[]
["18","Clause 18.0 - Interim completion","N/A",{"v":0,"d":"0.0"},"","",""]
[]
["19","Clause 19.0 - Practical completion  F:............................. V:............................ T:............................","Item",{"v":1,"d":"1.00"},null,{"$f":"D240*E240","v":{"v":0,"d":"R0.00"}},""]
[]
["20","Clause 20.0 - Completion in sections ","CONT",null,"","",""]
[]
["","F:............................. V:............................ T:............................","Item",{"v":1,"d":"1.00"},null,{"$f":"D244*E244","v":{"v":0,"d":"R0.00"}},""]
[]
["21","Clause 21.0 - Defects liability period and final completion","CONT",null,"","",""]
[]
["","F:............................. V:............................ T:............................","Item",{"v":1,"d":"1.00"},null,{"$f":"D248*E248","v":{"v":0,"d":"R0.00"}},""]
[]
["22","Clause 22.0 - Latent defects liability period F:............................. V:............................ T:............................","Item",{"v":1,"d":"1.00"},null,{"$f":"D250*E250","v":{"v":0,"d":"R0.00"}},""]
[]
["23","Clause 23.0 - Revision of the date for practical completion  Substitution of materials and goods  The removal or substitution of any materials and goods which do not conform to the specification or the contract drawings shall not constitute grounds for the extension of the construction period nor for the adjustment of the contract value [17.1.8; 23.1 & 2]","CONT",null,"","",""]
[]
["","F:............................. V:............................ T:............................","Item",{"v":1,"d":"1.00"},null,{"$f":"D254*E254","v":{"v":0,"d":"R0.00"}},""]
[]
["24","Clause 24.0 - Penalty for late or non-completion  F:............................. V:............................ T:............................","Item",{"v":1,"d":"1.00"},null,{"$f":"D256*E256","v":{"v":0,"d":"R0.00"}},""]
[]
["","Payment (A25 - A27) ","H3",null,"","",""]
[]
["25","Clause 25.0 - Payment","CONT",null,"","",""]
[]
["","Prices submitted  Where prices are submitted by the contractor or subcontractor during the progress of the works in respect of contract instructions or in regard to a claim under the terms of this agreement and notwithstanding the fact that such prices may be used in an interim payment certificate, there is to be no presumption of acceptance. Should the principal agent wish to accept any such prices prior to the issue of the certificate of final completion, it shall be in writing","CONT",null,"","",""]
[]
["","F:............................. V:............................ T:............................","Item",{"v":1,"d":"1.00"},null,{"$f":"D264*E264","v":{"v":0,"d":"R0.00"}},""]
[]
["","Suspension and termination (A28 - A29) ","H3",null,"","",""]
[]
["26","Clause 28.0 - Suspension by the contractor ","CONT",null,"","",""]
[]
["","F:............................. V:............................ T:............................","Item",{"v":1,"d":"1.00"},null,{"$f":"D270*E270","v":{"v":0,"d":"R0.00"}},""]
[]
["27","Clause 29.0 - Termination","CONT",null,"","",""]
[]
["","F:............................. V:............................ T:............................","Item",{"v":1,"d":"1.00"},null,{"$f":"D274*E274","v":{"v":0,"d":"R0.00"}},""]
[]
["","Dispute resolution (A30) ","H3",null,"","",""]
[]
["28","Clause 30.0 - Dispute resolution  F:............................. V:............................ T:............................","Item",{"v":1,"d":"1.00"},null,{"$f":"D278*E278","v":{"v":0,"d":"R0.00"}},""]
[]
["29","Agreement","CONT",null,"","",""]
[]
["","The required information of the parties and the amount of the contract sum shall be inserted in the agreement for signature of the agreement by the parties  F:............................. V:............................ T:............................","Item",{"v":1,"d":"1.00"},null,{"$f":"D282*E282","v":{"v":0,"d":"R0.00"}},""]
[]
["30","Contract data","CONT",null,"","",""]
[]
["","SECTION B:  GENERAL PRELIMINARIES ","H2",null,"","",""]
[]
["","User note  Amendments, modifications, corrections or supplements to the General Preliminaries in Section B should be recorded in the contract data","",{"v":0,"d":"0.0"},"","",""]
[]
["","Should it be necessary to expand on any of the General Preliminaries clauses, the user should list the appropriate General Preliminary clause number and heading and insert the relevant provision under a suitable heading in bold as may be necessary","",{"v":0,"d":"0.0"},"","",""]
[]
["","Definitions and interpretation (B1) ","H3",null,"","",""]
[]
["31","Clause 1.1 - Definitions  F:............................. V:............................ T:............................","Item",{"v":1,"d":"1.00"},null,{"$f":"D294*E294","v":{"v":0,"d":"R0.00"}},""]
[]
["32","Clause 1.2 - Interpretation  F:............................. V:............................ T:............................","Item",{"v":1,"d":"1.00"},null,{"$f":"D296*E296","v":{"v":0,"d":"R0.00"}},""]
[]
["","Documents (B2) ","H3",null,"","",""]
[]
["33","Clause 2.1 - Checking of documents  F:............................. V:............................ T:............................","Item",{"v":1,"d":"1.00"},null,{"$f":"D300*E300","v":{"v":0,"d":"R0.00"}},""]
[]
["34","Clause 2.2 - Provisional bills of quantities","CONT",null,"","",""]
[]
["","User note","H4",null,"","",""]
[]
["","Check \"wet trades\" included in the bills of quantities and edit the following clause as may be necessary","CONT",null,"","",""]
[]
["35","Clause 2.3 - Availability of construction information","CONT",null,"","",""]
[]
["","F:............................. V:............................ T:............................","Item",{"v":1,"d":"1.00"},null,{"$f":"D310*E310","v":{"v":0,"d":"R0.00"}},""]
[]
["36","Clause 2.4 - Ordering of materials and goods  F:............................. V:............................ T:............................","Item",{"v":1,"d":"1.00"},null,{"$f":"D312*E312","v":{"v":0,"d":"R0.00"}},""]
[]
["","Previous work and adjoining properties (B3) ","H3",null,"","",""]
[]
["37","Clause 3.1 - Previous work - dimensional accuracy  F:............................. V:............................ T:............................","Item",{"v":1,"d":"1.00"},null,{"$f":"D316*E316","v":{"v":0,"d":"R0.00"}},""]
[]
["38","Clause 3.2 - Previous work - defects  F:............................. V:............................ T:............................","Item",{"v":1,"d":"1.00"},null,{"$f":"D318*E318","v":{"v":0,"d":"R0.00"}},""]
[]
["39","Clause 3.3 - Inspection of adjoining properties  F:............................. V:............................ T:............................","Item",{"v":1,"d":"1.00"},null,{"$f":"D320*E320","v":{"v":0,"d":"R0.00"}},""]
[]
["","The site (B4) ","H3",null,"","",""]
[]
["40","Clause 4.1 - Handover of site in stages  F:............................. V:............................ T:............................","Item",{"v":1,"d":"1.00"},null,{"$f":"D324*E324","v":{"v":0,"d":"R0.00"}},""]
[]
["41","Clause 4.2 - Enclosure of the works","Item",{"v":1,"d":"1.00"},null,{"$f":"D326*E326","v":{"v":0,"d":"R0.00"}},""]
[]
["","Describe any specific hoarding requirements, other than already described in clause 4.2 or in the contract data ","CONT",null,"","",""]
[]
["","F:............................. V:............................ T:............................","CONT",null,"","",""]
[]
["42","Clause 4.3 - Geotechnical and other investigations  F:............................. V:............................ T:............................","Item",{"v":1,"d":"1.00"},null,{"$f":"D332*E332","v":{"v":0,"d":"R0.00"}},""]
[]
["43","Clause 4.4 - Encroachments  F:............................. V:............................ T:............................","Item",{"v":1,"d":"1.00"},null,{"$f":"D334*E334","v":{"v":0,"d":"R0.00"}},""]
[]
["44","Clause 4.5 - Existing premises occupied  F:............................. V:............................ T:............................","Item",{"v":1,"d":"1.00"},null,{"$f":"D336*E336","v":{"v":0,"d":"R0.00"}},""]
[]
["45","Clause 4.6 - Services - known  F:............................. V:............................ T:............................","Item",{"v":1,"d":"1.00"},null,{"$f":"D338*E338","v":{"v":0,"d":"R0.00"}},""]
[]
["","Management of contract (B5) ","H3",null,"","",""]
[]
["46","Clause 5.1 - Management of the works  F:............................. V:............................ T:............................","Item",{"v":1,"d":"1.00"},null,{"$f":"D342*E342","v":{"v":0,"d":"R0.00"}},""]
[]
["47","Clause 5.2 - Progress meetings  F:............................. V:............................ T:............................","Item",{"v":1,"d":"1.00"},null,{"$f":"D344*E344","v":{"v":0,"d":"R0.00"}},""]
[]
["48","Clause 5.3 - Technical meetings  F:............................. V:............................ T:............................","Item",{"v":1,"d":"1.00"},null,{"$f":"D346*E346","v":{"v":0,"d":"R0.00"}},""]
[]
["","Samples, shop drawings and manufacturer's instructions (B6) ","H3",null,"","",""]
[]
["49","Clause 6.1 - Samples of materials  F:............................. V:............................ T:...........................","Item",{"v":1,"d":"1.00"},null,{"$f":"D350*E350","v":{"v":0,"d":"R0.00"}},""]
[]
["50","Clause 6.2 - Workmanship samples  F:............................. V:............................ T:............................","Item",{"v":1,"d":"1.00"},null,{"$f":"D352*E352","v":{"v":0,"d":"R0.00"}},""]
[]
["51","Clause 6.3 - Shop drawings  F:............................. V:............................ T:............................","Item",{"v":1,"d":"1.00"},null,{"$f":"D354*E354","v":{"v":0,"d":"R0.00"}},""]
[]
["52","Clause 6.4 - Compliance with manufacturer's instructions  F:............................. V:............................ T:............................","Item",{"v":1,"d":"1.00"},null,{"$f":"D356*E356","v":{"v":0,"d":"R0.00"}},""]
[]
["","Deposits and fees (B7) ","H3",null,"","",""]
[]
["53","Clause 7.1 - Deposits and fees  F:.......................... V:........................... T:.........................","Item",{"v":1,"d":"1.00"},null,{"$f":"D360*E360","v":{"v":0,"d":"R0.00"}},""]
[]
["","Temporary services (B8) ","H3",null,"","",""]
[]
["54","Clause 8.1 - Water  F:............................. V:............................ T:............................","Item",{"v":1,"d":"1.00"},null,{"$f":"D364*E364","v":{"v":0,"d":"R0.00"}},""]
[]
["55","Clause 8.2 - Electricity  F:............................. V:............................ T:............................","Item",{"v":1,"d":"1.00"},null,{"$f":"D366*E366","v":{"v":0,"d":"R0.00"}},""]
[]
["56","Clause 8.3 - Ablution and welfare facilities  F:............................. V:............................ T:............................","Item",{"v":1,"d":"1.00"},null,{"$f":"D368*E368","v":{"v":0,"d":"R0.00"}},""]
[]
["57","Clause 8.4 - Communication facilities  F:............................. V:............................ T:............................","Item",{"v":1,"d":"1.00"},null,{"$f":"D370*E370","v":{"v":0,"d":"R0.00"}},""]
[]
["","Prime cost amounts (B9) ","H3",null,"","",""]
[]
["58","Clause 9.1 - Responsibility for prime cost amounts","CONT",null,"","",""]
[]
["","Where details of materials included in prime cost amounts are not readily available and it is therefore not possible for the contractor to price for waste, the relevant prime cost amount shall be inserted in the bills of quantities as a lump sum with the contractor being given the opportunity to separately price his overheads and profit and for taking delivery, etc as called for in this clause 9.1 of the preliminaries. In such case the fixing only or installation only of the relevant materials shall be provisionally measured for the contractor to price and shall be re-measured upon completion","CONT",null,"","",""]
[]
["","Where details of materials for which prime cost amounts are to be allowed are readily available, the quantity surveyor may elect to insert the relevant prime cost amounts in measured items, which measured items shall contain sufficient detail for the contractor to price for fixing and installation, waste, etc  F:............................. V:............................ T:............................","Item",{"v":1,"d":"1.00"},null,{"$f":"D378*E378","v":{"v":0,"d":"R0.00"}},""]
[]
["","Attendance on subcontractors (B10) ","H3",null,"","",""]
[]
["59","Clause 10.1 - General attendance  User note  General attendance is defined as being the duties of the contractor in terms of clause 12.2 of the JBCC n/s subcontract agreement  F:............................. V:............................ T:............................","Item",{"v":1,"d":"1.00"},null,{"$f":"D382*E382","v":{"v":0,"d":"R0.00"}},""]
[]
["60","Clause 10.2 - Special attendance","CONT",null,"","",""]
[]
["","It is important to note that general attendance only requires the contractor to \"permit the subcontractor to use erected scaffolding, hoisting facilities, etc provided by the contractor, in common with others having the like right while it remains erected on the site\" (refer to 12.2.13 of the JBCC n/s subcontract agreement). Many n/s subcontractors qualify their tenders to exclude scaffolding and/or hoisting facilities. Especially scaffolding could be an expensive item and it may be necessary in order to avoid claims to require the contractor to provide for the extended use of scaffolding for specific subcontracts within a description of \"special attendance\" in the applicable bill  F:............................. V:............................ T:............................","Item",{"v":1,"d":"1.00"},null,{"$f":"D386*E386","v":{"v":0,"d":"R0.00"}},""]
[]
["","General (B11) ","H3",null,"","",""]
[]
["61","Clause 11.1 - Protection of the works  F:............................. V:............................ T:............................","Item",{"v":1,"d":"1.00"},null,{"$f":"D390*E390","v":{"v":0,"d":"R0.00"}},""]
[]
["62","Clause 11.2 - Protection/isolation of existing works and works occupied in sections F:............................. V:............................ T:............................","Item",{"v":1,"d":"1.00"},null,{"$f":"D392*E392","v":{"v":0,"d":"R0.00"}},""]
[]
["63","Clause 11.3 - Security of the works  F:............................. V:............................ T:............................","Item",{"v":1,"d":"1.00"},null,{"$f":"D394*E394","v":{"v":0,"d":"R0.00"}},""]
[]
["64","Clause 11.4 - Notice before covering work  F:............................. V:............................ T:............................","Item",{"v":1,"d":"1.00"},null,{"$f":"D396*E396","v":{"v":0,"d":"R0.00"}},""]
[]
["65","Clause 11.5 - Disturbance","CONT",null,"","",""]
[]
["","The following clause may be used should \"disturbance\" [11.5] need to be extended","CONT",null,"","",""]
[]
["","Disturbance All work is to be carried out in such a manner as to cause no unacceptable or unreasonable dust, noise, vibrations, nuisance, inconvenience, annoyance and the like to the public, others, other properties and traffic in so far as they exceed the permissible limitations set by government legislation or by the local authority. Any delays, stoppages and the like arising from or in order to comply with the above will not constitute grounds for an adjustment to the construction period or contract value whatsoever ?F:........................ V:.........................T:.........................","Item",{"v":1,"d":"1.00"},null,{"$f":"D402*E402","v":{"v":0,"d":"R0.00"}},""]
[]
["66","Clause 11.6 - Environmental disturbance","CONT",null,"","",""]
[]
["","Controlling all forms of pollution  The contractor shall be responsible for and take all precautions in controlling by whatever means necessary all forms of pollution emanating from the site during the construction period due inter alia to noise, artificial light, wind-blown sand, dust, deposits of mud, etc","CONT",null,"","",""]
[]
["","The contractor is to ensure that all roads which border the site and are used by the contractor during the execution of the works are kept clean and free of any dirt or debris caused by the execution of the works ?","CONT",null,"","",""]
[]
["","Environmental management plan  The employer has prepared an environmental management plan (EMP) (refer to Annexure ? for a copy of the relevant plan). The contractor shall price opposite this item for compliance with all the requirements of such EMP ?  F:........................ V:.........................T:.........................","Item",{"v":1,"d":"1.00"},null,{"$f":"D410*E410","v":{"v":0,"d":"R0.00"}},""]
[]
["67","Clause 11.7 - Works cleaning and clearing  F:............................. V:............................ T:............................","Item",{"v":1,"d":"1.00"},null,{"$f":"D412*E412","v":{"v":0,"d":"R0.00"}},""]
[]
["68","Clause 11.8 - Vermin  F:............................. V:............................ T:............................","Item",{"v":1,"d":"1.00"},null,{"$f":"D414*E414","v":{"v":0,"d":"R0.00"}},""]
[]
["69","Clause 11.9 - Overhand work  F:............................. V:............................ T:............................","Item",{"v":1,"d":"1.00"},null,{"$f":"D416*E416","v":{"v":0,"d":"R0.00"}},""]
[]
["70","Clause 11.10 - Tenant installations  F:............................. V:............................ T:............................","Item",{"v":1,"d":"1.00"},null,{"$f":"D418*E418","v":{"v":0,"d":"R0.00"}},""]
[]
["71","Clause 11.11 - Advertising  F:............................. V:............................ T:............................","Item",{"v":1,"d":"1.00"},null,{"$f":"D420*E420","v":{"v":0,"d":"R0.00"}},""]
[]
["","SECTION  C: SPECIFIC PRELIMINARIES","H2",null,"","",""]
[]
["72","Warranties for materials and workmanship  Where warranties for materials and/or workmanship are called for, the contractor shall obtain a written warranty, addressed to the employer, from the entity supplying the materials and/or executing the work and shall deliver same to the principal agent on final completion of the contract","CONT",null,"","",""]
[]
["","The warranty shall state that workmanship, materials and installation are warranted for a specific period from the date of practical completion and that any defects that may arise during the specified period shall be made good at the expense of the entity supplying the materials and/or doing the work, upon written notice to do so","CONT",null,"","",""]
[]
["","The warranty will not be enforced if the work is damaged by defects in the execution of the works, in which case the responsibility for replacement shall rest entirely with the contractor  F:............................. V:............................ T:............................","Item",{"v":1,"d":"1.00"},null,{"$f":"D428*E428","v":{"v":0,"d":"R0.00"}},""]
[]
["73","Overtime  Should overtime be required to be worked for any reason whatsoever, the cost of such overtime is to be borne by the contractor unless the principal agent has specifically authorised, prior to execution thereof, that costs for such overtime are to be borne by the employer  F:........................ V:.........................T:.........................","Item",{"v":1,"d":"1.00"},null,{"$f":"D430*E430","v":{"v":0,"d":"R0.00"}},""]
[]
["74","Cooperation of the contractor for cost management  It is specifically agreed that the contractor accepts the obligation of assisting the principal agent in implementing proper cost management. The contractor will be advised by the principal agent of all cost management procedures which will be implemented to ensure that the contract value does not exceed the budget  F:........................ V:.........................T:.........................","Item",{"v":1,"d":"1.00"},null,{"$f":"D432*E432","v":{"v":0,"d":"R0.00"}},""]
[]
["75","Overloading  The contractor shall take all necessary steps to ensure that no damage occurs due to overloading of any portion of the works or temporary works eg scaffolding, etc. The contractor shall submit details of his proposed loading, storage, plant erection, etc to the principal agent for approval prior to proceeding with such loading, storing or erecting and shall comply with and pay for the principal agent's requirements in connection with the provision of temporary support work, etc. Any damage caused to the works by overloading shall be made good by the contractor at his sole expense  F:........................ V:.........................T:.........................","Item",{"v":1,"d":"1.00"},null,{"$f":"D434*E434","v":{"v":0,"d":"R0.00"}},""]
[]
["76","Propping of floors below  The contractor is advised that propping of floors below may be required if he wishes to use any areas of completed suspended reinforced concrete slabs for vehicle access, storage of materials and goods and location of plant, scaffolding, etc. The location of these areas and any necessary propping shall be approved by the principal agent and the cost thereof shall be borne by the contractor  F:........................ V:.........................T:.........................","Item",{"v":1,"d":"1.00"},null,{"$f":"D436*E436","v":{"v":0,"d":"R0.00"}},""]
[]
["77","Testing of flat roof waterproofing for watertightness  Flat roof waterproof areas shall be flooded and kept \"ponded\" for at least forty eight (48) hours as a test to ensure the watertightness of the waterproofing and before any further construction work is carried out above the waterproofing  F:........................ V:.........................T:.........................","Item",{"v":1,"d":"1.00"},null,{"$f":"D438*E438","v":{"v":0,"d":"R0.00"}},""]
[]
["","User note  Insert the following where a health and safety specification is not yet available. Note that there is an obligation on the employer to ensure that the contractor has priced opposite this item for the compliance with the act and the regulations and the reasonable provisions of the health and safety specification","",{"v":0,"d":"0.0"},"","",""]
[]
["78","Health and safety","CONT",null,"","",""]
[]
["","Without limiting the generality of the provisions of clause 2.0, the contractor's attention is drawn to the provisions of the Construction Regulations issued in terms of the Occupational Health and Safety Act, 1993 as amended. It is specifically stated that the employer shall prepare a documented health and safety specification for the works and that the employer shall ensure that the contractor has made provision for the cost of health and safety measures during the execution of the works. The  contractor shall price opposite this item for compliance with the act and the regulations and the reasonable provisions of the aforementioned health and safety specification [2.1]","",{"v":0,"d":"0.0"},"","",""]
[]
["","User note  Insert the following where a health and safety specification is available. Note that there is an obligation on the employer to ensure that the contractor has priced opposite this item for the compliance with the act and the regulations and the reasonable provisions of the health and safety specification","",{"v":0,"d":"0.0"},"","",""]
[]
["","Health and safety  Without limiting the generality of the provisions of clause 2.0, the contractor's attention is drawn to the provisions of the Construction Regulations issued in terms of the Occupational Health and Safety Act, 1993 as amended. It is specifically stated that the employer shall prepare a documented health and safety specification for the works (refer to Annexure ? for a copy of the relevant specification) and that the employer shall ensure that the contractor has made provision for the cost of health and safety measures during the execution of the works. The contractor shall price opposite this item for compliance with the act and the regulations and the provisions of the aforementioned health and safety specification [2.1]","",{"v":0,"d":"0.0"},"","",""]
[]
["","The contractor shall:  1.   Comply with the health and safety specification for the works  2.   Prepare and agree with the health and safety consultant the health and  safety plan for the works  3.   Cooperate with the health and safety consultant in all respects  4.   Manage the compliance of all subcontractors with the regulations and with the health and safety plan and specification  5.   Conform to the conditions contained in the employer's health and safety specification","",{"v":0,"d":"0.0"},"","",""]
[]
["","F:............................. V:............................ T:............................","Item",{"v":1,"d":"1.00"},null,{"$f":"D452*E452","v":{"v":0,"d":"R0.00"}},""]
[]
["79","Green star building certification  User note  Insert the provisions called for by the relevant green star consultant should it be a requirement that the project be submitted for green star certification  F:........................ V:.........................T:.........................","Item",{"v":1,"d":"1.00"},null,{"$f":"D454*E454","v":{"v":0,"d":"R0.00"}},""]
[]
["80","Broad based black economic empowerment (BBBEE)  Tenders submitted will be evaluated taking into account their empowerment rating  The employer will be monitoring the broad based black economic empowerment (BBBEE) status of the contractor throughout the execution of the works","CONT",null,"","",""]
[]
["","The contractor is to submit to the principal agent on an annual basis a schedule of spend, split into vendors engaged as subcontractors and suppliers indicating their BBBEE rating including proof of the said rating  F:........................ V:.........................T:.........................","Item",{"v":1,"d":"1.00"},null,{"$f":"D458*E458","v":{"v":0,"d":"R0.00"}},""]
[]
["81","Advertising rights  The employer may elect to contract with advertising agencies for the erection of advertising hoardings, banners, wraps or the like for the duration of the contract. The contractor shall not prevent such an arrangement and will assist in the facilitation of same. The position and type of advertising structure to be agreed with the principal agent so as not to hinder the contractor in meeting his obligations under this agreement  F:........................ V:.........................T:.........................","Item",{"v":1,"d":"1.00"},null,{"$f":"D460*E460","v":{"v":0,"d":"R0.00"}},""]
[]
["82","Confidentiality  The contractor undertakes to maintain in confidence any and all information regarding this project and shall obtain appropriate similar undertakings from all subcontractors and suppliers. Such information shall not be used in any way except in connection with the execution of the works  No information regarding this project shall be published or disclosed without the prior written consent of the employer  F:........................ V:.........................T:.........................","Item",{"v":1,"d":"1.00"},null,{"$f":"D462*E462","v":{"v":0,"d":"R0.00"}},""]
[]
["83","Media releases  All rights of publication of articles in the media, together with any advertising relating thereto or in any way connected with this project, shall vest with the employer  The contractor together with his subcontractors shall not, without the prior written consent of the employer, cause any statement or advertisement connected with this project to be printed, screened or aired by the media  F:........................ V:.........................T:.........................","Item",{"v":1,"d":"1.00"},null,{"$f":"D464*E464","v":{"v":0,"d":"R0.00"}},""]
[]
["","OWNER AND BUILDING OWNERS SPECIFIC REQUIREMENT","H3",null,"","",""]
[]
["84","The bidders/contractor shall take note of the following restriction pertaining to implementation of the project:","CONT",null,"","",""]
[]
["85","The site is located in a multi-storey building on the fifty floor (5th) and shall ensure that no heavy noisy or disruptive work (including drilling, cutting, or hammering) shall occur during working (08H00 to 17H00, Monday to Friday).  ","Item",{"v":1,"d":"1.00"},null,{"$f":"D470*E470","v":{"v":0,"d":"R0.00"}},""]
[]
["86","The contractor shall ensure the common areas (Passages, Lifts, parking areas) and any areas the employer and/or building owner demarcated to be used by the Contractor.","Item",{"v":1,"d":"1.00"},null,{"$f":"D472*E472","v":{"v":0,"d":"R0.00"}},""]
[]
["87","The contractor will have reasonable access to the building beyond the traditional working hours (08h00-17h00, Monday to Friday) and needs to make allowances (Including costs associated with working beyond the hours and days ie,. weekend work)","Item",{"v":1,"d":"1.00"},null,{"$f":"D474*E474","v":{"v":0,"d":"R0.00"}},""]
[]
["88","The contractor shall appoint a Project Manager or Contract Manager that will be responsible for coordinating the work and regular reporting the employer/building owner and the Architect. ","Item",{"v":1,"d":"1.00"},null,{"$f":"D476*E476","v":{"v":0,"d":"R0.00"}},""]
[]
["","SUMMARY OF CATEGORIES","H3",null,"","",""]
[]
["","Category : Fixed   R........................................  Category : Value   R........................................  Category : Time    R........................................","",{"v":0,"d":"0.0"},"","",""]
[]
[]
[null,"Carried to summary",{"$nulls":3},{"$f":"SUM(F4:F482)","v":{"v":0,"d":"R0.00"}}]

{"sheet":"1-2 BILL NO 02","index":1,"n_rows":64,"n_cols":7,"rows_kept":64,"merged":[[1,0,2,0],[1,1,2,1],[1,2,2,2],[1,3,2,3],[1,4,2,4],[1,5,2,5]]}
[]
["ITEM","DESCRIPTION","UNIT","QTY","RATE","AMOUNT"]
[]
["","BILL NO 02","H1",null,"","",""]
[]
["","ALTERATIONS","H1",null,"","",""]
[]
["","General","H4",null,"","",""]
[]
["","SUPPLEMENTARY PREAMBLES","H2",null,"","",""]
[]
["","View Site","H3",null,"","",""]
[]
["","Before submitting this tender the contractor shall visit the site and satisfy himself as to the nature and extent of the work to be done and the value of materials contained in the buildings or portions of the buildings to be demolished. No claims for any variation of the contract sum in respect of the nature and extent of the work or inferior or damaged materials will be entertained. ","",null,"","",""]
[]
["","REMOVAL OF EXISTING WORK","H2",null,"","",""]
[]
["","Taking down and removing roofs, floors, panelling, ceilings, partitions, etc","H3",null,"","",""]
[]
["1","Acoustic tile suspended ceilings including suspension grid, hangers, etc","m2",242,null,{"$f":"D20*E20","v":0},""]
[]
["2","Drywall partitioning 4m high including doors, ironmongery, glazed borrowed lights, etc","m",56,"","",""]
[]
["","Taking and set aside floor panels, etc ","H3",null,"","",""]
[]
["3","Raised Floor boards in server room. Contractor shall clean and prepare to receive new floor finish on panels, etc,.","m2",13,null,{"$f":"D26*E26","v":0},""]
[]
["","Take up and remove wood block floor covering, vinyl floor covering, carpeting, waterproofing, etc.","H3",null,"","",""]
[]
["4","Carpet tile floor covering including preparing screed for floor covering","m2",227,null,{"$f":"D30*E30","v":0},""]
[]
["","Taking out doors, windows, etc. including thresholds, sills, etc. and setting aside for re-use. The costs shall include fixing into new position.","H3",null,"","",""]
[]
["5","Aluminium single door and frame not exceeding 2,5m² from aluminium shop front","No",10,null,{"$f":"D34*E34","v":0},""]
[]
["","Carefully taking out and removing doors, windows, etc, including thresholds, sills, etc and make good to walls and prepare for new doors and windows. Hand over door and window to employer and/or Landlord","H3",null,"","",""]
[]
["6","Timber fire double door and frame exceeding 2,5m² and not exceeding 5m² ","No",1,null,{"$f":"D38*E38","v":0},""]
[]
["","Carefully taking out and removing doors, windows, etc and handover to employer and/or landlord","H3",null,"","",""]
[]
["7","Aluminium window blinds 2 550mm high fixed to ceiling and prepare surface to receive new blinds\t","m",10,"","",""]
[]
["","Carefully remove electrical fittings and hand over to Employer and/or Landlord ","H3",null,"","",""]
[]
["","The contractor shall carefully remove electrical fitting including disconnecting any wiring and leave in place for new electrical fittings. ","",null,"","",""]
[]
["8","Remove ceiling mounted electrical fittings size 200mm diameter","No",12,null,{"$f":"D48*E48","v":0},""]
[]
["9","Remove ceiling mounted electrical fitting size 300x300mm wide","No",4,null,{"$f":"D50*E50","v":0},""]
[]
["10","Remove ceiling mounted electrical fittings size 300x450mm wide","No",4,null,{"$f":"D52*E52","v":0},""]
[]
["","Hacking up/off and removing ceramic tile floor and wall finishes including  removing mortar bed or backing and preparing concrete or brick surfaces for new screed, plaster or tile finishes","H3",null,"","",""]
[]
["11","Tiles to floors","m2",56,null,{"$f":"D56*E56","v":0},""]
[]
["","PROVISIONAL SUMS","H2",null,"","",""]
[]
["","Sundry Alterations work to Office areas","H3",null,"","",""]
[]
["12","Allow a R50,000.00 (Fifty Thousand Rands) for sundry alteration works to building ","Item",{"v":1,"d":"1.00"},{"v":50000,"d":"50000.00"},{"v":50000,"d":"50000.00"},""]
[]
[null,"Carried to summary",{"$nulls":3},{"$f":"SUM(F4:F62)","v":{"v":50000,"d":"R50,000.00"}}]

{"sheet":"1-3 BILL NO 3","index":2,"n_rows":24,"n_cols":7,"rows_kept":24,"merged":[[1,0,2,0],[1,1,2,1],[1,2,2,2],[1,3,2,3],[1,4,2,4],[1,5,2,5]]}
[]
["ITEM","DESCRIPTION","UNIT","QTY","RATE","AMOUNT"]
[]
["","BILL NO 3","H1",null,"","",""]
[]
["","MASONRY","H1",null,"","",""]
[]
["","SUPERSTRUCTURE","H2",null,"","",""]
[]
["","Brickwork of NFP bricks in class II mortar","H3",null,"","",""]
[]
["1","Half brick walls","m2",13,{"v":0,"d":"R0.00"},{"$f":"D12*E12","v":0},""]
[]
["","SUNDRIES","H2",null,"","",""]
[]
["","Brickwork reinforcement","H3",null,"","",""]
[]
["2","75mm Wide reinforcement built in horizontally","m",26,{"v":0,"d":"R0.00"},{"$f":"D18*E18","v":0},""]
[]
["","Pre-stressed fabricated concrete lintels including necessary temporary supports","H3",null,"","",""]
[]
["3","110 x 70mm Lintels in lengths not exceeding 3m","m",1,{"v":0,"d":"R0.00"},{"$f":"D22*E22","v":0},""]
[]
[null,"Carried to summary",{"$nulls":3},{"$f":"SUM(F4:F23)","v":{"v":0,"d":"R0.00"}}]

{"sheet":"1-4 BILL NO 04","index":3,"n_rows":60,"n_cols":7,"rows_kept":60,"merged":[[2,0,3,0],[2,1,3,1],[2,2,3,2],[2,3,3,3],[2,4,3,4],[2,5,3,5]]}
[]
[]
["ITEM","DESCRIPTION","UNIT","QTY","RATE","AMOUNT"]
[]
[]
["","BILL NO 04",null,null,"","",""]
[]
["","CARPENTRY AND JOINERY",null,null,"","",""]
[]
["","SUPPLEMENTARY PREAMBLES",null,null,"","",""]
[]
["","Plate nailed timber roof truss construction  The following is applicable in respect of roof trusses:  Trusses are at maximum 1,20m centres. Roof covering is 0,6mm IBR profile sheeting on 50 x 75mm purlins. Ceilings are 6,4mm skimmed gypsum plasterboard sheeting on 38 x 38mm brandering. The references given in the descriptions refer to the respective types of trusses detailed on the architect's drawing numbered H100/015 accompanying these bills of quantities. The dimensions in the descriptions of the trusses are nominal and actual measurements shall be obtained from the architect and/or the site before design or fabrication commences","",null,"","",""]
[]
["","Joinery  Descriptions of frames shall be deemed to include frames, transomes, mullions, rails, etc","",null,"","",""]
[]
["","Descriptions of hardwood joinery shall be deemed to include pelleting of bolt holes","",null,"","",""]
[]
["","Fixing Items described as \"nailed\" shall be deemed to be fixed with hardened steel nails or shot pins to brickwork or concrete","",null,"","",""]
[]
["","Decorative laminate finish Laminate finish shall be glued under pressure.  Edge strips shall be butt jointed at junctions with adjacent similar finish","",null,"","",""]
[]
["","SKIRTINGS",null,null,"","",""]
[]
["","Wrought meranti",null,null,"","",""]
[]
["1","19 x 69mm Skirtings","m",107,{"v":0,"d":"R0.00"},{"$f":"D26*E26","v":0},""]
[]
["","DOORS, ETC",null,null,"","",""]
[]
["","Doors Etc,.",null,null,"","",""]
[]
["","44mm Solid meranti framed and ledge timber panel door",null,null,"","",""]
[]
["2","Door size 813x2032mm high","No",2,{"v":0,"d":"R0.00"},{"$f":"D34*E34","v":0},""]
[]
["","Fire Doors etc,.",null,null,"","",""]
[]
["","Bison bord semi solid flush panel doors with 1,6mm Formica finish both sides and 22mm hardwood edge all around, hung to steel frames on one and a half pair 100x75 x 3mm two ball bearing stainless steel butt hinges",null,null,"","",""]
[]
["3","40mm Door 813 x 2100mm high\t","No",1,{"v":0,"d":"R0.00"},{"$f":"D40*E40","v":0},""]
[]
["","JOINERY FITTINGS",null,null,"","",""]
[]
["","The following cupboard fittings have been measured complete units i.e the components of the units have not been separately measured. The descriptions, therefore, of such units shall be deemed to include all components, assembling, housing, notching, glueing, blocking, planting on and screwing with countersunk screws, edge strips, decorative plastic finish, glass, ironmongery, metalwork, paint or varnish finishes, etc. All joinery must be completed after the Architects approval of samples  NOTE: All as per Architect's drawings ","",null,"","",""]
[]
["","Cupboards",null,null,"","",""]
[]
["","Supawood, white Melamine veneer both sides (all exposed surface) for tops, sides and backs",null,null,"","",""]
[]
["4","Wall cupboard 4m long x 850mm high x 600mm deep with Formica top, shelves, doors, ironmongery etc,. ","No",2,{"v":0,"d":"R0.00"},{"$f":"D50*E50","v":0},""]
[]
["5","U-shaped floor cupboard under granite tops (tops elsewhere) 7000mm long x 600mm deep x 850mm high with shelves, drawers, doors 100mm skirting etc,.","No",1,{"v":0,"d":"R0.00"},{"$f":"D52*E52","v":0},""]
[]
["","VANITY SLABS AND COUNTER TOPS",null,null,"","",""]
[]
["","Rustenburg grey granite or similar approved mitred adn fixed in position on top of joinery cupboards (include any steel / timber brackets required) with bevelled round edge polished on all exposed surfaces",null,null,"","",""]
[]
["6","32mm Thick x 600mm wide top U-shaped joinery cupboard with one edge rounded","m",7,{"v":0,"d":"R0.00"},{"$f":"D58*E58","v":0},""]
[]
[null,"Carried to summary",{"$nulls":3},{"$f":"SUM(F5:F58)","v":{"v":0,"d":"R0.00"}}]

{"sheet":"1-5 BILL NO 05","index":4,"n_rows":36,"n_cols":7,"rows_kept":36,"merged":[[1,0,2,0],[1,1,2,1],[1,2,2,2],[1,3,2,3],[1,4,2,4],[1,5,2,5]]}
[]
["ITEM","DESCRIPTION","UNIT","QTY","RATE","AMOUNT"]
[]
[]
["","BILL NO 05","H1",null,"","",""]
[]
["","CEILINGS, PARTITIONS AND ACCESS FLOORING","H1",null,"","",""]
[]
["","SUSPENDED CEILINGS","H2",null,"","",""]
[]
["","1200 x 600 x 10mm Thick gypsum ceiling tiles with vinyl sheet finish, including SQ/T38 white power coated main tees, cross tees, hold-down clips, wedges, etc,. suspended with galvanised hangers at 1200mm maximum centres, including 115mm thick non-mountable light weight glass wool thermal ceiling insulation and 25mm shodowline cornices","H3",null,"","",""]
[]
["1","Ceilings suspended not exceeding 1m below concrete slab","m2",237,null,{"$f":"D13*E13","v":{"v":0,"d":"R0.00"}},""]
[]
["","\"Donn\" cornices to suspended ceilings","H3",null,"","",""]
[]
["2","\"SM25\" pre-painted cornices, nailed","m",185,null,{"$f":"D17*E17","v":{"v":0,"d":"R0.00"}},""]
[]
["","INSULATION","H2",null,"","",""]
[]
["","Non-combustible lightweight fibreglass insulation blanket:","H3",null,"","",""]
[]
["3","100mm Insulation closely fitted between tie beams and laid loose on top of aluminium tees","m2",237,null,{"$f":"D23*E23","v":{"v":0,"d":"R0.00"}},""]
[]
["","DRY WALL PARTITIONS ETC","H2",null,"","",""]
[]
["","BPB Gypsum GypRoc Standard - 40 db (½ hour fire rating) Ultrasteel Stud Drywall consisting of stud and track system with 51mm Drywall Ultrasteel studs positioned at 600mm centres  fixed into 51mm wide top and bottom track clad on both sides  with 12,5mm thick taper edged Rhinoboard fixed with 25mm Drywall screws at 220mm centres and all corners fixed with Drywall Corner beads and all joints to be taped and jointed as per manufacture's specifications. ","H3",null,"","",""]
[]
["4","Partitioning 4000mm high with bottom track plugged and top track of tophat/cornice section with 50mm wide x 5 mm thick \"Sondor SBR\" closed cell expanded styrene butadiene rubber density 33 stuck on and fixed to suspended ceiling tees.  ","m",32,null,{"$f":"D29*E29","v":{"v":0,"d":"R0.00"}},""]
[]
["","Insulation","H3",null,"","",""]
[]
["5","45mm thick mineral fibre blanket in cavity of partition for sound proofing ","m2",126,null,{"$f":"D33*E33","v":{"v":0,"d":"R0.00"}},""]
[]
[]
[null,"Carried to summary",{"$nulls":3},{"$f":"SUM(F4:F34)","v":{"v":0,"d":"R0.00"}}]

{"sheet":"1-6 BILL NO 06","index":5,"n_rows":42,"n_cols":7,"rows_kept":42,"merged":[[1,0,2,0],[1,1,2,1],[1,2,2,2],[1,3,2,3],[1,4,2,4],[1,5,2,5]]}
[]
["ITEM","DESCRIPTION","UNIT","QTY","RATE","AMOUNT"]
[]
["","BILL NO 06",null,null,"","",""]
[]
["","FLOOR COVERINGS, PLASTIC LININGS, ETC",null,null,"","",""]
[]
["","FLOOR COVERINGS",null,null,"","",""]
[]
["","CARPTES",null,null,"","",""]
[]
["","Belgotex Westminster 10m broadloom Carpets including laided in manufactures approved adhesive spread with trwoed  fitted with an A2 notched blade at rateof between 5.5m² and 6.5m² per litre on suitably prepared subfloor (elsewhere specified) in accordance with SANS 10070 all installed by approved installer in accordance with SANS 10186:2000. ",null,null,"","",""]
[]
["1","On floors (Grey in colour)","m2",121,null,{"$f":"D14*E14","v":{"v":0,"d":"R0.00"}},""]
[]
["2","On floors (Black in colour)","m2",71,null,{"$f":"D16*E16","v":{"v":0,"d":"R0.00"}},""]
[]
["","VINYL FLOOR COVERING ",null,null,"","",""]
[]
["","Supply and fix 2.0mm thick × 2.0m wide Primo SD non-directional static dissipative vinyl sheeting, manufactured in accordance with EN 649 and laid over an earthed grid of aluminium or copper tape in FloorworX No. 27 acrylic conductive adhesive which has been spread using a trowel fitted with an A2 notched blade at a rate of between 5.5m and 6.5m2 per litre on a previously prepared Class 1 sub-floor in accordance with SANS 10070, using a reliable Self-Leveller when required, including all cutting and waste. The sheeting must be rolled in both directions with an articulated 68kg three-sectional roller immediately after it has been laid into the adhesive. Joins must be butted, grooved and heat welded using the manufacturer's welding rod, ensuring that the welding rod bonds to more than 70% of the sheet thickness. After completing the installation the floor must be electrically tested for resistivity in accordance with the requirements of SANS 6160.   ",null,null,"","",""]
[]
["3","On floors","m2",13,null,{"$f":"D22*E22","v":{"v":0,"d":"R0.00"}},""]
[]
["","2mm Thick semi flexible heavy vinyl floor sheeting laid on cement screed with an approved adhesive and with wedling strips to match colour",null,null,"","",""]
[]
["4","On floors","m2",29,null,{"$f":"D26*E26","v":{"v":0,"d":"R0.00"}},""]
[]
["","SKIRTINGS, NOSINGS, ETC",null,null,"","",""]
[]
["","\"Bildon\"",null,null,"","",""]
[]
["5","53mm BSN3 natural anodised aluminium skirting with PVC insert fixed to concrete","m",51,null,{"$f":"D32*E32","v":{"v":0,"d":"R0.00"}},""]
[]
["6","25 x 2mm Vinyl edging strips stepped over treads and risers of stairs","m",3,null,{"$f":"D34*E34","v":{"v":0,"d":"R0.00"}},""]
[]
["","POLISH, SEALERS, ETC",null,null,"","",""]
[]
["","Clean by stripping and sealing and apply three coats water based copolymer emulsion or other approved sealer:",null,null,"","",""]
[]
["7","On vinyl floors","m2",41,null,{"$f":"D40*E40","v":{"v":0,"d":"R0.00"}},""]
[]
[null,"Carried to summary",{"$nulls":3},{"$f":"SUM(F4:F41)","v":{"v":0,"d":"R0.00"}}]

{"sheet":"1-7 BILL NO 07","index":6,"n_rows":67,"n_cols":7,"rows_kept":67,"merged":[[1,0,2,0],[1,1,2,1],[1,2,2,2],[1,3,2,3],[1,4,2,4],[1,5,2,5]]}
[]
["ITEM","DESCRIPTION","UNIT","QTY","RATE","AMOUNT"]
[]
[]
["","BILL NO 07",null,null,"","",""]
[]
["","IRONMONGERY",null,null,"","",""]
[]
["","HINGES, BOLTS, ETC",null,null,"","",""]
[]
["","\"Union\" or similar approved",null,null,"","",""]
[]
["1","100mm Aluminium reflex hinge in pairs (Code: 8352-100SN)","No",4,null,{"$f":"D13*E13","v":{"v":0,"d":"R0.00"}},""]
[]
["","LOCKS",null,null,"","",""]
[]
["","\"CISA\" or similar approved",null,null,"","",""]
[]
["2","CISA C2000 euro profile double cylinder, size 65mm,  master keyed with sanded brass (Code: G300-10-00-MK).","No",8,null,{"$f":"D19*E19","v":{"v":0,"d":"R0.00"}},""]
[]
["","HANDLES",null,null,"","",""]
[]
["","\"Union\"",null,null,"","",""]
[]
["3","DPS \"Riviera\" euro cylinder Satin solid lever handle on 8mm square rose &amp; escutcheon set (Code: FS103SCYLTR).","No",10,null,{"$f":"D25*E25","v":{"v":0,"d":"R0.00"}},""]
[]
["","DOOR CLOSERS",null,null,"","",""]
[]
["","\"Union\" or similar approved",null,null,"","",""]
[]
["4","Overhead door closer Cam Notion closer EN 3-6 SIL DA (Code DC700DA) with straight mounting plate door closer (Code DCA 120-40) and opening damper (Code DCA 153/000500)","No",4,null,{"$f":"D31*E31","v":{"v":0,"d":"R0.00"}},""]
[]
["","BLOCK OUT BLINDS",null,null,"","",""]
[]
["","Aluvert with 'Ultra Glide' or similar approved vertical blinds with 25 x 45mm aluminium rail to soffits of window and 90mm wide vertical louvres",null,null,"","",""]
[]
["5","Sliding Blind for  door opening size 3 800mm wide and 2 200mm high","No",5,null,{"$f":"D37*E37","v":{"v":0,"d":"R0.00"}},""]
[]
["6","Blind for window opening size 1 000mm wide and 22 00mm high","No",2,null,{"$f":"D39*E39","v":{"v":0,"d":"R0.00"}},""]
[]
["7","Blind for window opening size 1 740mm wide and 900mm high","No",1,null,{"$f":"D41*E41","v":{"v":0,"d":"R0.00"}},""]
[]
["8","Blind for window opening size 1 900mm wide and 900mm high","No",1,null,{"$f":"D43*E43","v":{"v":0,"d":"R0.00"}},""]
[]
["9","Blind for window opening size 2 750 mm wide and 900mm high","No",2,null,{"$f":"D45*E45","v":{"v":0,"d":"R0.00"}},""]
[]
["10","Blind for window opening size 3 800mm wide and 900mm high","No",5,null,{"$f":"D47*E47","v":{"v":0,"d":"R0.00"}},""]
[]
["","SUNDRIES",null,null,"","",""]
[]
["","\"Union\"",null,null,"","",""]
[]
["11","38mm Diameter rubber door stop plugged","No",9,null,{"$f":"D53*E53","v":{"v":0,"d":"R0.00"}},""]
[]
["","BATHROOM FITTINGS",null,null,"","",""]
[]
["","Towel rail holders",null,null,"","",""]
[]
["12","19mm Stainless steel chromium platted towel rail, 600mm long, with end brackets plugged to plastered or tilled wall. ","No",1,null,{"$f":"D59*E59","v":{"v":0,"d":"R0.00"}},""]
[]
["","SHELVES ETC",null,null,"","",""]
[]
["","Wrot S.A pine:",null,null,"","",""]
[]
["13","Bank of 5 tier frames shalving, consisting of 25 x 300mm shelves with and including 50x50mm supports fixed to walls at 1000mm centres","No",10,null,{"$f":"D65*E65","v":{"v":0,"d":"R0.00"}},""]
[]
[null,"Carried to summary",{"$nulls":3},{"$f":"SUM(F4:F65)","v":{"v":0,"d":"R0.00"}}]

{"sheet":"1-8 BILL NO 08","index":7,"n_rows":37,"n_cols":7,"rows_kept":37,"merged":[[1,0,2,0],[1,1,2,1],[1,2,2,2],[1,3,2,3],[1,4,2,4],[1,5,2,5]]}
[]
["ITEM","DESCRIPTION","UNIT","QTY","RATE","AMOUNT"]
[]
[]
["","BILL NO 08",null,null,"","",""]
[]
["","METALWORK",null,null,"","",""]
[]
["","ALUMINIUM WINDOWS, DOORS, ETC",null,null,"","",""]
[]
[null,"The bidder shall review drawing number IDCSP/002 prior  pricing. "]
[]
["","Natural anodised aluminium doors with 8mm LOW E clear laminated safety glass, as per smart glass intruder proof with clip-on glazing beads and neoprene gaskets seals as per manufacturer or similar approved. ",null,null,"","",""]
[]
["","The contractor is expected to measure on site to confirm actual sizes ","",null,"","",""]
[]
[1,"Purpose made aluminium door overall size 1570 x 2100mm high with glassed viewing panel ","No",5,null,{"$f":"D17*E17","v":{"v":0,"d":"R0.00"}},""]
[]
["","ALUMINIUM SHOPFRONTS",null,null,"","",""]
[]
["","ALUMINIUM SHOPFRONTS COMPLETE WITH GLAZING, HANDLES AND ALL ACCESSORIES",null,null,"","",""]
[]
[2,"eAluglass Bautech GF Serene 50 demountable acoustic partitioning 4000mm high with a 47dB acoustic rating, comprising of glazed panels with demountable glazed modules incorporating 27.52mm  acoustic laminated glass into aluminium frames including Varikust VK62 900mm x 2100mm high single glass acoustic doors.","m",13,null,{"$f":"D23*E23","v":{"v":0,"d":"R0.00"}},""]
[]
[null,"Aluminium projected powder coated paint finish (colour: to match existing or as per clients choice) window/door frames with stainless steel concealed friction stays, size (as designed), complying with AAAMSA performance criteria\nfor coastal windy areas, glazed in accordance with SANS 10160, SANS 10137, SANS 10400 (Part N of Section 3) and SANS 1263, fitted with clip-on glazing beads with gasket seals with lugs plugged and screwed to brickwork or concrete, all in accordance with AAAMSA Selection Guide for Glazed Aluminium Architectural Aluminium Products"]
[]
[3,"Size 2700 x 2400mm high with single door size 900 x 2400mm high ","No ",2,null,{"$f":"D27*E27","v":{"v":0,"d":"R0.00"}}]
[]
[4,"Single door size 900 x 2400mm high ","No",2,null,{"$f":"D29*E29","v":{"v":0,"d":"R0.00"}}]
[]
["","PRESSED STEEL DOOR FRAMES",null,null,"","",""]
[]
["","1,2mm Rebated frames suitable for half brick walls",null,null,"","",""]
[]
[5,"Frame for door 813 x 2032mm high","No",1,null,{"$f":"D35*E35","v":{"v":0,"d":"R0.00"}},""]
[]
[null,"Carried to summary",{"$nulls":3},{"$f":"SUM(F4:F36)","v":{"v":0,"d":"R0.00"}}]

{"sheet":"1-9 BILL NO 09","index":8,"n_rows":30,"n_cols":7,"rows_kept":30,"merged":[[2,0,3,0],[2,1,3,1],[2,2,3,2],[2,3,3,3],[2,4,3,4],[2,5,3,5]]}
[]
[]
["ITEM","DESCRIPTION","UNIT","QTY","RATE","AMOUNT"]
[]
[]
["","BILL NO 09",null,null,"","",""]
[]
["","PLASTERING",null,null,"","",""]
[]
["","SUPPLEMENTARY PREAMBLES",null,null,"","",""]
[]
["","SCREEDS",null,null,"","",""]
[]
["","Screeds on concrete",null,null,"","",""]
[]
["1","20mm Thick on floors and landings","m2",78,null,{"$f":"D16*E16","v":{"v":0,"d":"R0.00"}},""]
[]
["","INTERNAL PLASTER",null,null,"","",""]
[]
["","Cement plaster on brickwork",null,null,"","",""]
[]
["2","On walls","m2",32,null,{"$f":"D22*E22","v":{"v":0,"d":"R0.00"}},""]
[]
["","CORNER PROTECTORS, DIVIDING STRIPS, ETC",null,null,"","",""]
[]
["","Corner protectors",null,null,"","",""]
[]
["3","30 x 3mm Flat section brass dividing strips between different floor finishes","m",9,null,{"$f":"D28*E28","v":{"v":0,"d":"R0.00"}},""]
[]
[null,"Carried to summary",{"$nulls":3},{"$f":"SUM(F5:F28)","v":{"v":0,"d":"R0.00"}}]

{"sheet":"1-10 BILL NO 10","index":9,"n_rows":27,"n_cols":7,"rows_kept":27,"merged":[[2,0,3,0],[2,1,3,1],[2,2,3,2],[2,3,3,3],[2,4,3,4],[2,5,3,5]]}
[]
[]
["ITEM","DESCRIPTION","UNIT","QTY","RATE","AMOUNT"]
[]
["","BILL NO 10",null,null,"","",""]
[]
["","TILING",null,null,"","",""]
[]
["","SUPPLEMENTARY PREAMBLES",null,null,"","",""]
[]
["","Descriptions",null,null,"","",""]
[]
["","Unless described as \"fixed with adhesive to plaster (plaster elsewhere)\" descriptions of tiling on brick or concrete walls, columns, etc shall be deemed to include 1:4 cement plaster backing and descriptions of tiling on concrete floors etc shall be deemed to include 1:3 plaster bedding","",null,"","",""]
[]
["","WALL TILING",null,null,"","",""]
[]
["","300 x 600 x 5mm ceramic tiles on plastered brickwork with approved tile adhesive to plaster with 4mm straight joints fixed and grouted with approved tile grout:",null,null,"","",""]
[]
["1","On walls","m2",4,null,{"$f":"D19*E19","v":{"v":0,"d":"R0.00"}},""]
[]
["","FLOOR TILING",{"$nulls":3},"",""]
[]
["","600 x 600 Heavy Traffic Porcelain (P5) Tile (PC Sum R500/m2 including supply delivered to site excluding VAT, fixed with \"Gold Star \" adhesive to walls flush point with \"TAL Wall & Floor\" grouting.",{"$nulls":3},"",""]
[]
["2","On floors and landings","m2",78,null,{"$f":"D25*E25","v":{"v":0,"d":"R0.00"}},""]
[]
[null,"Carried to summary",{"$nulls":3},{"$f":"SUM(F5:F26)","v":{"v":0,"d":"R0.00"}}]

{"sheet":"1-11 BILL NO 11","index":10,"n_rows":64,"n_cols":7,"rows_kept":64,"merged":[[2,0,3,0],[2,1,3,1],[2,2,3,2],[2,3,3,3],[2,4,3,4],[2,5,3,5]]}
[]
[]
["ITEM","DESCRIPTION","UNIT","QTY","RATE","AMOUNT"]
[]
[]
["","BILL NO 11",null,null,"","",""]
[]
["","PLUMBING AND DRAINAGE (PROVISIONAL)",null,null,"","",""]
[]
["","SUPPLEMENTARY PREAMBLES",null,null,"","",""]
[]
["","SANITARY FITTINGS",null,null,"","",""]
[]
["","\"Franke\"",null,null,"","",""]
[]
["1","Franke Trendline model 1200x535 DEV grade 304 18/10 polished stainless steel double end bowl drop on sink (Code 1030009), overall site 1200 x 535mm with two 343 x 410 x 140mm deep bowls, fitted onto cupboard(else where measured) including Spazi F/2 plumbing kit (Code 1120009) with 38mm waste fitting. Sink to include Enix Square Swivel mixer (Code 1150017) with overarm swivel spout, 15mm flexible connections, With 5 year guarantee on body construction ","No",1,null,{"$f":"D16*E16","v":{"v":0,"d":"R0.00"}},""]
[]
["","TRAPS ETC",null,null,"","",""]
[]
["","'Plumbcrazy' rubber traps:",null,null,"","",""]
[]
["2","40 x 300mm Double bowl sink combination trap (Code WTRT)","No",1,null,{"$f":"D22*E22","v":{"v":0,"d":"R0.00"}},""]
[]
["","SANITARY PLUMBING",null,null,"","",""]
[]
["","unPlasticed polyvinyl chloride (uPVC) pipes: ",null,null,"","",""]
[]
["3","50mm Pipes fixed to walls","m",2,null,{"$f":"D28*E28","v":{"v":0,"d":"R0.00"}},""]
[]
["","Extra over uPVC pipes for:",null,null,"","",""]
[]
["4","50mm Bend","No",6,null,{"$f":"D32*E32","v":{"v":0,"d":"R0.00"}},""]
[]
["5","50mm Access Bend","No",2,null,{"$f":"D34*E34","v":{"v":0,"d":"R0.00"}},""]
[]
["6","50 x100mm Reducing junction ","No",1,null,{"$f":"D36*E36","v":{"v":0,"d":"R0.00"}},""]
[]
["7","50mm Junction","No",1,null,{"$f":"D38*E38","v":{"v":0,"d":"R0.00"}},""]
[]
["","Sundries",null,null,"","",""]
[]
["8","Testing waste pipe system","Item",{"v":1,"d":"1.00"},null,{"$f":"D42*E42","v":{"v":0,"d":"R0.00"}},""]
[]
["","WATER SUPPLIES",null,null,"","",""]
[]
["","Class 0 copper pipes with capillary couplings",null,null,"","",""]
[]
["9","15mm pipes fixed to walls","m",7,null,{"$f":"D48*E48","v":{"v":0,"d":"R0.00"}},""]
[]
["","Extra over uPVC pressure pipes for capillary couplings",null,null,"","",""]
[]
["10","15mm Fittings \t","No",6,null,{"$f":"D52*E52","v":{"v":0,"d":"R0.00"}},""]
[]
["","Sundries",null,null,"","",""]
[]
["11","Testing water supply","Item",{"v":1,"d":"1.00"},null,{"$f":"D56*E56","v":{"v":0,"d":"R0.00"}},""]
[]
["","ELECTRIC WATER HEATERS",null,null,"","",""]
[]
["","Kwikot",null,null,"","",""]
[]
["12","Kwikot Prisma Classique point of use 10 litre electric thermostat regulated underbasin waster heater (Code: RPRX-10-UB) mixer (including),overall size 340 x 291 x 347mm, fixed on mounting bracket plugged and screwed to wall and connected to 230V electrical power supply, all in accordance to manufacturer's recommendations","No",1,null,{"$f":"D62*E62","v":{"v":0,"d":"R0.00"}},""]
[]
[null,"Carried to summary",{"$nulls":3},{"$f":"SUM(F5:F62)","v":{"v":0,"d":"R0.00"}}]

{"sheet":"1-12 BILL NO 12","index":11,"n_rows":32,"n_cols":7,"rows_kept":32,"merged":[[2,0,3,0],[2,1,3,1],[2,2,3,2],[2,3,3,3],[2,4,3,4],[2,5,3,5]]}
[]
[]
["ITEM","DESCRIPTION","UNIT","QTY","RATE","AMOUNT"]
[]
[]
["","BILL NO 12",{"$nulls":3},"",""]
[]
["","PAINTWORK",{"$nulls":3},"",""]
[]
["","PREPARATORY WORK TO EXISTING WORK",{"$nulls":3},"",""]
[]
["","Surfaces shall be thoroughly washed down and allowed to dry completely before any paint is applied. Blistered or peeling paint shall be completely removed and cracks shall be opened, filled with a suitable filler and finished smooth","",null,null,"",""]
[]
["","ON INTERNAL FLOATED PLASTER SURFACES",{"$nulls":3},"",""]
[]
["","One coat primer and two coats interior quality Resplendent (code y4-d2-3) emulsion pain",{"$nulls":3},"",""]
[]
["1","On internal walls","m2",751,null,{"$f":"D18*E18","v":{"v":0,"d":"R0.00"}},""]
[]
["","ON PLASTERBOARD SURFACES",{"$nulls":3},"",""]
[]
["","Two coats superior quality acrylic emulsion paint for interior and exterior use",{"$nulls":3},"",""]
[]
["2","Partitions","m2",514,null,{"$f":"D24*E24","v":{"v":0,"d":"R0.00"}},""]
[]
["","ON WOOD SURFACES",{"$nulls":3},"",""]
[]
["","One coat primer and two coats premium quality polyurethane enamel paint",{"$nulls":3},"",""]
[]
["3","Skirtings, rails, etc not exceeding 300mm girth","m",157,null,{"$f":"D30*E30","v":{"v":0,"d":"R0.00"}},""]
[]
[null,"Carried to summary",{"$nulls":3},{"$f":"SUM(F5:F31)","v":{"v":0,"d":"R0.00"}}]

{"sheet":"1-13 BILL NO 13","index":12,"n_rows":57,"n_cols":7,"rows_kept":57,"merged":[[1,0,2,0],[1,1,2,1],[1,2,2,2],[1,3,2,3],[1,4,2,4],[1,5,2,5]]}
[]
["ITEM","DESCRIPTION","UNIT","QTY","RATE","AMOUNT"]
[]
[]
["","BILL NO 13",null,null,"","",""]
[]
["","PROVISIONAL SUMS ETC",null,null,"","",""]
[]
["","General",null,null,"","",""]
[]
["","Work for which budgetary allowances are provided will be measured and valued in accordance with the relevant JBCC Principal Building agreement 6.2 and deducted in whole or in part if not required without any compensation for loss of profit on the said allowances",null,null,"","",""]
[]
["","Prime cost amounts and provisional sums are net.  Prime cost amounts shall include for delivery to site of all articles concerned  Provisional sums are for material and equipment supplied and installed complete by firms of specialists",null,null,"","",""]
[]
["","Profit",null,null,"","",""]
[]
["","Where stated, the contractor may allow for profit if required",null,null,"","",""]
[]
["","BUDGETARY ALLOWANCE",null,null,"","",""]
[]
["","Professional Fee Service Costs for Electrical, Mechanical and Fire for Town planning submission",null,null,"","",""]
[]
["1","Provide a sum of R190,000.00 (One Hundred and Ninety Thousand Rands) for the payment of a Project Manager and Architectural submission as instructed by Principal Agent ","Item",{"v":1,"d":"1.00"},{"v":190000,"d":"R190,000.00"},{"$f":"E23*D23","v":{"v":190000,"d":"R190,000.00"}},""]
[]
["","The following monetary provisions are to be omitted from the contract sum and used as directed below:",null,null,"","",""]
[]
["2","Provide a sum of R200,000.00 (Two Hundred Thousand Rands) for contingencies, to be used as instructed by the Principal Agent in terms of the Principal Building Agreement. ","Item",{"v":1,"d":"1.00"},{"v":200000,"d":"R200,000.00"},{"$f":"E27*D27","v":{"v":200000,"d":"R200,000.00"}},""]
[]
["","PROVISIONAL SUMS FOR NOMINATED / SELECTED SUBCONTRACT WORKS",null,null,"","",""]
[]
["","The following monetary provisions are to be omitted from the contract sum and used as directed below:",null,null,"","",""]
[]
["","ELECTRICAL INSTALLATION ETC,.",null,null,"","",""]
[]
["3","Provide the sum of R350,000.00 (Three Hundred and Fifty Thousand Rands) for general electrical installation.","Item",{"v":1,"d":"1.00"},{"v":350000,"d":"R350,000.00"},{"$f":"E35*D35","v":{"v":350000,"d":"R350,000.00"}},""]
[]
["4","Profit","%","","","",""]
[]
["5","Attendance ","%","","","",""]
[]
["","MECHANICAL WORKS INSTALLATION ",null,null,"","",""]
[]
["6","Provide a sum R400,000.00 (Four Hundred Thousand Rands) for mechanical installation. ","Item",{"v":1,"d":"1.00"},{"v":400000,"d":"R400,000.00"},{"$f":"E43*D43","v":{"v":400000,"d":"R400,000.00"}},""]
[]
["7","Profit","%","","","",""]
[]
["8","Attendance","%","","","",""]
[]
["","FIRE INSTALLATION ETC",null,null,"","",""]
[]
["9","Provide a sum of R80,000.00 (Eighty Thousand Rands) for fire installation. ","Item",{"v":1,"d":"1.00"},{"v":80000,"d":"R80,000.00"},{"$f":"E51*D51","v":{"v":80000,"d":"R80,000.00"}},""]
[]
["10","Profit","%","","","",""]
[]
["11","Attendance","%","","","",""]
[]
[null,"Carried to summary",{"$nulls":3},{"$f":"SUM(F4:F55)","v":{"v":1220000,"d":"R1,220,000.00"}}]

{"sheet":"1-14 Summary","index":13,"n_rows":35,"n_cols":4,"rows_kept":35,"merged":[[1,0,2,0],[1,1,2,1],[1,2,2,2]]}
[]
["ITEM","DESCRIPTION","AMOUNT"]
[]
[]
["1","PRELIMINARIES",{"$f":"'1-1 BILL NO  01'!F483","v":{"v":0,"d":"R0.00"}},""]
[]
["2","ALTERATIONS",{"$f":"'1-2 BILL NO 02'!F64","v":{"v":50000,"d":"R50,000.00"}},""]
[]
["3","MASONRY",{"$f":"'1-3 BILL NO 3'!F24","v":{"v":0,"d":"R0.00"}},""]
[]
["4","CARPENTRY AND JOINERY",{"$f":"'1-4 BILL NO 04'!F60","v":{"v":0,"d":"R0.00"}},""]
[]
["5","CEILINGS, PARTITIONS AND ACCESS FLOORING",{"$f":"'1-5 BILL NO 05'!F36","v":{"v":0,"d":"R0.00"}},""]
[]
["6","FLOOR COVERINGS ETC.",{"$f":"'1-6 BILL NO 06'!F42","v":{"v":0,"d":"R0.00"}},""]
[]
["7","IRONMONGERY",{"$f":"'1-7 BILL NO 07'!F67","v":{"v":0,"d":"R0.00"}},""]
[]
["8","METALWORK",{"$f":"'1-8 BILL NO 08'!F37","v":{"v":0,"d":"R0.00"}},""]
[]
["9","PLASTERING",{"$f":"'1-9 BILL NO 09'!F30","v":{"v":0,"d":"R0.00"}},""]
[]
["10","TILING",{"$f":"'1-10 BILL NO 10'!F27","v":{"v":0,"d":"R0.00"}},""]
[]
["11","PLUMBING AND DRAINAGE",{"$f":"'1-11 BILL NO 11'!F64","v":{"v":0,"d":"R0.00"}},""]
[]
["12","PAINTWORK",{"$f":"'1-12 BILL NO 12'!F32","v":{"v":0,"d":"R0.00"}},""]
[]
["13","PROVISIONAL AMOUNTS",{"$f":"'1-13 BILL NO 13'!F57","v":{"v":1220000,"d":"R1,220,000.00"}},""]
[]
["","SUB-TOTAL",{"$f":"SUM(C4:C29)","v":{"v":1270000,"d":"R1,270,000.00"}},""]
[]
["","ADD: Value added Tax at 15% ","",""]
[]
[null,"TOTAL INCLUDING VAT",{"$f":"SUM(C31:C33)","v":{"v":1270000,"d":"R1,270,000.00"}}]